bitfinex/quotes_BTCUSD_20240730
["timestamp","ask_amount","ask_price","bid_price","bid_amount"]
[1722338485740,0.81262005,66712.0,66711.0,0.91825002]
[1722338487768,0.81262005,66712.0,66711.0,0.91824932]
[1722338490750,0.81262005,66712.0,66711.0,1.21804932]
[1722338490988,0.81262005,66712.0,66711.0,1.2180424]
[1722338491217,0.81262005,66712.0,66711.0,0.9182424]
[1722338491420,0.81262005,66712.0,66711.0,1.06887544]
[1722338491421,0.72942005,66712.0,66711.0,1.06887544]
[1722338491642,0.66412005,66712.0,66711.0,1.49285701]
[1722338491844,0.66412005,66712.0,66711.0,1.61743843]
[1722338492248,0.66412005,66712.0,66711.0,1.47756089]
[1722338493398,0.66412005,66712.0,66711.0,1.47755975]
[1722338494348,0.66412005,66712.0,66711.0,1.47755972]
[1722338497644,0.66412005,66712.0,66711.0,1.35297947]
[1722338497861,0.66412005,66712.0,66711.0,1.47755879]
[1722338498282,0.66412005,66712.0,66711.0,1.92805311]
[1722338498477,0.66412005,66712.0,66711.0,1.93805311]
[1722338498679,0.66412005,66712.0,66711.0,2.17947768]
[1722338498884,0.66412005,66712.0,66711.0,2.32357768]
[1722338499303,0.66412005,66712.0,66711.0,2.32357711]
[1722338499508,0.66412005,66712.0,66711.0,2.37365711]
[1722338499712,0.66412005,66712.0,66711.0,2.3210882]
[1722338500311,0.66412005,66712.0,66711.0,2.3596477]
[1722338500517,0.66412005,66712.0,66711.0,2.3210882]
[1722338500719,0.66412005,66712.0,66711.0,2.6208882]
[1722338500942,0.66412005,66712.0,66711.0,2.30945379]
[1722338501139,0.66412005,66712.0,66711.0,2.00965379]
[1722338501339,0.66412005,66712.0,66711.0,2.62087085]
[1722338501567,0.66412005,66712.0,66711.0,2.03265379]
[1722338501762,0.66412005,66712.0,66711.0,2.38893066]
[1722338501917,0.66412005,66712.0,66711.0,2.97737244]
[1722338502173,0.66495005,66712.0,66711.0,2.97737244]
[1722338502382,0.66495005,66712.0,66711.0,3.03066694]
[1722338502581,0.66495005,66712.0,66711.0,3.03065844]
[1722338502909,0.66495005,66712.0,66711.0,3.04465872]
[1722338503294,0.66495005,66712.0,66711.0,2.64477774]
[1722338503502,0.66495005,66712.0,66711.0,2.68960366]
[1722338504359,0.66495005,66712.0,66711.0,2.64475569]
[1722338504714,0.66495005,66712.0,66711.0,2.71204079]
[1722338504919,0.66495005,66712.0,66711.0,3.04462757]
[1722338505123,0.66495005,66712.0,66711.0,2.97734247]
[1722338505341,0.64202654,66712.0,66711.0,3.04460734]
[1722338505680,0.64202654,66712.0,66711.0,3.06705594]
[1722338505840,0.63302654,66712.0,66711.0,2.97734247]
[1722338506225,0.63302654,66712.0,66711.0,2.96334247]
[1722338506784,0.63302654,66712.0,66711.0,2.64475569]
[1722338507186,0.63302654,66712.0,66711.0,2.68960657]
[1722338507594,0.63302654,66712.0,66711.0,2.33336679]
[1722338507795,0.63302654,66712.0,66711.0,2.68960354]
[1722338508344,0.63302654,66712.0,66711.0,2.64475435]
[1722338509363,0.63302654,66712.0,66711.0,2.62275435]
[1722338509589,0.63302654,66712.0,66711.0,2.68959027]
[1722338510069,0.62302654,66712.0,66711.0,2.64475435]
[1722338510269,0.55976045,66712.0,66711.0,2.64475435]
[1722338510716,0.55976045,66712.0,66711.0,2.75772181]
[1722338510915,0.55976045,66712.0,66711.0,2.53316679]
[1722338511161,0.55976045,66712.0,66711.0,2.94453884]
[1722338511367,0.35550045,66712.0,66711.0,2.67797819]
[1722338511575,0.20560045,66712.0,66711.0,2.7577152]
[1722338513121,0.01171045,66712.0,66711.0,2.75771543]
[1722338513521,0.01171045,66712.0,66711.0,2.75639343]
[1722338514366,0.00845,66717.0,66716.0,2.044159]
[1722338514515,0.00845,66717.0,66716.0,2.46062582]
[1722338514917,0.00845,66717.0,66716.0,2.49047219]
[1722338516122,0.00845,66717.0,66716.0,2.50447219]
[1722338516964,0.00845,66717.0,66716.0,1.82639419]
[1722338517444,0.00845,66717.0,66716.0,2.27457406]
[1722338517852,0.00845,66717.0,66716.0,2.28857406]
[1722338518612,0.00845,66717.0,66716.0,2.31157406]
[1722338520669,0.00845,66717.0,66716.0,2.18702355]
[1722338520878,0.00845,66717.0,66716.0,2.31156642]
[1722338521926,0.00845,66717.0,66716.0,2.55081107]
[1722338522143,0.00192048,66717.0,66716.0,2.5508068]
[1722338522353,0.00845,66718.0,66717.0,2.010604]
[1722338522486,0.00845,66725.0,66724.0,1.004335]
[1722338522687,0.00845,66725.0,66724.0,2.08460658]
[1722338523030,0.00845,66725.0,66724.0,2.38434858]
[1722338523230,0.00845,66725.0,66724.0,2.44444517]
[1722338524104,0.00845,66725.0,66724.0,2.45844517]
[1722338524321,0.00845,66725.0,66724.0,2.71596121]
[1722338525505,0.00845,66725.0,66724.0,2.52915184]
[1722338525708,0.00845,66725.0,66724.0,2.66353976]
[1722338526110,0.00845,66725.0,66724.0,2.68653976]
[1722338526519,0.00845,66725.0,66724.0,2.37519085]
[1722338526816,0.00845,66725.0,66724.0,2.73120966]
[1722338527049,0.00845,66725.0,66724.0,2.6263976]
[1722338527258,0.15465,66725.0,66724.0,2.0029556]
[1722338527461,0.15465,66725.0,66724.0,1.98467046]
[1722338527711,0.15465,66725.0,66724.0,1.79788641]
[1722338528463,0.15465,66725.0,66724.0,1.4071891]
[1722338529962,0.15465,66725.0,66724.0,1.5071891]
[1722338532285,0.15465,66725.0,66724.0,1.6940059]
[1722338532490,0.15465,66725.0,66724.0,1.84470022]
[1722338534497,0.00845,66725.0,66724.0,2.1744615]
[1722338534941,0.00845,66725.0,66724.0,2.39240866]
[1722338535164,0.00845,66725.0,66724.0,2.47767104]
[1722338535402,0.00845,66725.0,66724.0,3.10988008]
[1722338535641,0.00845,66725.0,66724.0,3.17739678]
[1722338535874,0.00845,66725.0,66724.0,2.8920023]
[1722338536093,0.00845,66725.0,66724.0,2.8940023]
[1722338536335,0.00845,66725.0,66724.0,2.95276987]
[1722338536580,0.00845,66725.0,66724.0,2.93876987]
[1722338536817,0.00845,66725.0,66724.0,3.30767231]
[1722338537053,0.00845,66725.0,66724.0,2.9080023]
[1722338537940,0.00845,66725.0,66724.0,2.97516829]
[1722338538173,0.00845,66725.0,66724.0,3.30768811]
[1722338538637,0.00845,66725.0,66724.0,3.39231022]
[1722338538870,0.0606,66736.0,66735.0,0.032]
[1722338539096,0.08915,66737.0,66735.0,0.032]
[1722338539097,0.08915,66737.0,66736.0,0.489612]
[1722338539321,0.08915,66737.0,66736.0,2.0510367]
[1722338539559,0.08915,66737.0,66736.0,2.05103223]
[1722338540265,0.08915,66737.0,66736.0,1.81182942]
[1722338540713,0.08915,66737.0,66736.0,1.81582942]
[1722338540915,0.15505,66737.0,66736.0,1.49785628]
[1722338541643,0.15505,66737.0,66736.0,1.19816828]
[1722338542368,0.15505,66737.0,66736.0,0.64784724]
[1722338542853,0.15505,66737.0,66736.0,0.64786637]
[1722338543087,0.15505,66737.0,66736.0,0.94755437]
[1722338543326,0.15505,66737.0,66736.0,0.94755219]
[1722338543327,0.05505,66737.0,66736.0,0.94755219]
[1722338543564,0.05505,66737.0,66736.0,1.05935582]
[1722338543794,0.05505,66737.0,66736.0,1.07335582]
[1722338546136,0.05505,66737.0,66736.0,1.07335903]
[1722338546369,0.13285,66737.0,66736.0,0.9475554]
[1722338548712,0.13250172,66737.0,66736.0,0.9475554]
[1722338549468,0.13250172,66737.0,66736.0,0.94755475]
[1722338552743,0.13250172,66737.0,66736.0,0.94755393]
[1722338553462,0.13250172,66737.0,66736.0,0.94755485]
[1722338555392,0.13250172,66737.0,66736.0,0.16825485]
[1722338555603,0.92492629,66737.0,66736.0,0.04371344]
[1722338555811,0.88170872,66737.0,66736.0,0.04371344]
[1722338556083,0.88170872,66737.0,66736.0,0.014]
[1722338556084,0.94916636,66737.0,66736.0,0.014]
[1722338556950,0.64948336,66737.0,66736.0,0.014]
[1722338557180,0.13250172,66737.0,66736.0,0.014]
[1722338557395,0.13250172,66737.0,66729.0,0.07534716]
[1722338557582,0.064,66736.0,66735.0,0.149845]
[1722338557827,0.064,66736.0,66735.0,0.12454782]
[1722338558045,0.064,66736.0,66735.0,0.154393]
[1722338558902,0.064,66736.0,66735.0,0.04284518]
[1722338559112,0.064,66736.0,66735.0,0.91662583]
[1722338559319,0.064,66736.0,66735.0,0.73856545]
[1722338559520,0.064,66736.0,66735.0,0.61693147]
[1722338559972,0.064,66736.0,66735.0,0.91662347]
[1722338561348,0.064,66736.0,66735.0,1.21631547]
[1722338561550,0.0787,66742.0,66741.0,0.149831]
[1722338561913,0.0647,66741.0,66739.0,0.149836]
[1722338562155,0.0647,66741.0,66740.0,0.02480662]
[1722338563434,0.0647,66741.0,66738.0,0.149839]
[1722338563677,0.0647,66741.0,66739.0,0.02480727]
[1722338564080,0.0647,66741.0,66739.0,0.17464427]
[1722338564361,0.0647,66741.0,66739.0,0.17464227]
[1722338564776,0.0647,66741.0,66740.0,0.007]
[1722338565185,0.0647,66741.0,66740.0,0.02480662]
[1722338566192,0.0647,66741.0,66740.0,0.03180662]
[1722338567212,0.0647,66741.0,66740.0,0.30618637]
[1722338567871,0.0647,66741.0,66740.0,0.15635137]
[1722338568442,0.0647,66741.0,66740.0,0.30618392]
[1722338569127,0.0647,66741.0,66740.0,0.18164162]
[1722338569344,0.0647,66741.0,66740.0,0.30618315]
[1722338570691,0.0647,66741.0,66740.0,0.90552315]
[1722338571209,0.06553,66741.0,66740.0,0.90552315]
[1722338571585,0.00083,66741.0,66740.0,1.20519315]
[1722338572007,0.00083,66741.0,66740.0,1.34121848]
[1722338572224,0.00083,66741.0,66740.0,1.20519315]
[1722338572436,0.00083,66741.0,66740.0,1.20518519]
[1722338572868,0.00083,66741.0,66740.0,1.08065162]
[1722338573082,0.00083,66741.0,66740.0,1.20518284]
[1722338574757,0.00083,66741.0,66740.0,1.20518109]
[1722338575141,0.00083,66741.0,66740.0,1.58950845]
[1722338575336,0.00083,66741.0,66740.0,1.98331845]
[1722338576179,0.00083,66741.0,66740.0,1.97631845]
[1722338577163,0.00083,66741.0,66740.0,1.82562413]
[1722338577546,0.00083,66741.0,66740.0,1.83962413]
[1722338579103,0.00083,66741.0,66740.0,1.83961981]
[1722338581943,0.00083,66741.0,66740.0,1.93961981]
[1722338582152,0.00083,66741.0,66740.0,1.93961888]
[1722338582595,0.00083,66741.0,66740.0,2.0763132]
[1722338582809,0.00083,66741.0,66740.0,2.0903132]
[1722338583215,0.00083,66741.0,66740.0,2.0763132]
[1722338583554,0.00083,66741.0,66740.0,2.0903132]
[1722338583784,0.00083,66741.0,66740.0,1.96578898]
[1722338583982,0.00083,66741.0,66740.0,2.09031209]
[1722338585182,0.00056179,66741.0,66740.0,2.09031209]
[1722338585586,0.00056179,66741.0,66740.0,1.96578898]
[1722338585805,0.00056179,66741.0,66740.0,2.09031209]
[1722338588335,0.00056179,66741.0,66740.0,1.93961777]
[1722338591386,0.00056179,66741.0,66740.0,1.81509466]
[1722338591581,0.00056179,66741.0,66740.0,1.93961777]
[1722338593945,0.00056179,66741.0,66740.0,1.93961778]
[1722338594686,0.00056179,66741.0,66740.0,1.81509466]
[1722338594941,0.00056179,66741.0,66740.0,1.93961778]
[1722338595382,0.00056179,66741.0,66740.0,2.01661778]
[1722338596767,0.00056179,66741.0,66740.0,2.1673121]
[1722338596970,0.00056179,66741.0,66740.0,2.1032121]
[1722338597982,0.00056179,66741.0,66740.0,1.95251778]
[1722338598183,0.00056179,66741.0,66740.0,1.82799466]
[1722338598381,0.00056179,66741.0,66740.0,1.95251779]
[1722338600354,0.00056179,66741.0,66740.0,2.19170781]
[1722338600925,0.00056179,66741.0,66740.0,2.13930246]
[1722338601363,0.00056179,66741.0,66740.0,1.82799466]
[1722338601585,0.00056179,66741.0,66740.0,2.13928544]
[1722338601742,0.00056179,66741.0,66740.0,2.28997976]
[1722338601942,0.00056179,66741.0,66740.0,1.97868898]
[1722338602203,0.00056179,66741.0,66740.0,2.2899647]
[1722338602375,0.00029344,66741.0,66740.0,2.2899647]
[1722338603810,0.00029344,66741.0,66740.0,2.28996691]
[1722338605817,0.00029344,66741.0,66740.0,2.13927259]
[1722338607983,0.00029344,66741.0,66740.0,1.82799466]
[1722338608184,0.00029344,66741.0,66740.0,2.13927259]
[1722338608418,0.00029344,66741.0,66740.0,2.15127259]
[1722338608741,0.00029344,66741.0,66740.0,2.47094259]
[1722338608957,0.00029344,66741.0,66740.0,2.71123691]
[1722338609168,0.00029344,66741.0,66740.0,3.13327584]
[1722338609373,0.00029344,66741.0,66740.0,3.19548067]
[1722338609579,0.00029344,66741.0,66740.0,3.21792067]
[1722338609997,0.00029344,66741.0,66740.0,3.20392067]
[1722338610205,0.00029344,66741.0,66740.0,3.21792067]
[1722338610413,0.00029344,66741.0,66740.0,3.51759067]
[1722338611240,0.00029344,66741.0,66740.0,3.15655057]
[1722338611448,0.00029344,66741.0,66740.0,3.45518797]
[1722338611663,0.00029344,66741.0,66740.0,3.51743398]
[1722338611867,0.00029344,66741.0,66740.0,3.51743244]
[1722338612073,0.00029344,66741.0,66740.0,3.51743228]
[1722338612280,0.00845,66744.0,66743.0,1.846448]
[1722338612486,0.00845,66744.0,66743.0,2.92615902]
[1722338612703,0.00845,66744.0,66743.0,2.95314242]
[1722338613490,0.00845,66744.0,66743.0,2.95314217]
[1722338614562,0.00845,66744.0,66743.0,2.62071153]
[1722338614765,0.00845,66744.0,66743.0,2.95313999]
[1722338615221,0.00845,66744.0,66743.0,2.96714027]
[1722338615439,0.00845,66744.0,66743.0,2.61471153]
[1722338617104,0.00845,66744.0,66743.0,2.63471153]
[1722338617982,0.00845,66744.0,66743.0,2.63470034]
[1722338619315,0.00845,66744.0,66743.0,2.56757861]
[1722338619532,0.00845,66744.0,66743.0,2.93435634]
[1722338620403,0.00845,66744.0,66743.0,2.93635634]
[1722338621224,0.00845,66744.0,66743.0,2.9363557]
[1722338621450,0.00845,66744.0,66743.0,2.86923324]
[1722338621665,0.00845,66744.0,66743.0,2.55800558]
[1722338621884,0.00845,66744.0,66743.0,2.91397707]
[1722338622091,0.00845,66744.0,66743.0,2.86923324]
[1722338622311,0.00845,66744.0,66743.0,2.84723324]
[1722338622516,0.00845,66744.0,66743.0,2.93635133]
[1722338622928,0.00845,66744.0,66743.0,2.86923324]
[1722338623370,0.00845,66744.0,66743.0,2.86923313]
[1722338623581,1e-08,66744.0,66743.0,2.86923313]
[1722338623713,0.00845,66747.0,66746.0,2.152219]
[1722338623915,0.066,66764.0,66746.0,2.152219]
[1722338623916,0.066,66764.0,66763.0,0.44935]
[1722338624122,0.066,66764.0,66763.0,1.55751169]
[1722338624360,0.066,66764.0,66763.0,1.5574949]
[1722338625166,0.066,66764.0,66763.0,1.8710619]
[1722338625377,0.066,66764.0,66763.0,1.5714949]
[1722338625578,0.066,66764.0,66763.0,1.58978004]
[1722338626182,0.1447,66764.0,66763.0,1.4944949]
[1722338627528,0.1447,66764.0,66763.0,1.37002067]
[1722338627739,0.1447,66764.0,66763.0,1.49450433]
[1722338629123,0.066,66764.0,66763.0,1.49450433]
[1722338630632,0.066,66764.0,66763.0,1.50373674]
[1722338630836,0.066,66764.0,66763.0,1.5299474]
[1722338631043,0.066,66764.0,66763.0,1.65442657]
[1722338631243,0.061,66764.0,66763.0,1.65442657]
[1722338631637,0.061,66764.0,66763.0,1.65442483]
[1722338634295,0.061,66764.0,66763.0,1.65442365]
[1722338636217,0.061,66764.0,66763.0,1.50372933]
[1722338637640,0.061,66764.0,66763.0,1.50372912]
[1722338638924,0.1439,66764.0,66763.0,1.50372912]
[1722338639965,0.061,66764.0,66763.0,1.50372912]
[1722338640790,0.064,66767.0,66763.0,0.33076908]
[1722338640996,0.064,66767.0,66766.0,0.479369]
[1722338641211,0.064,66767.0,66766.0,1.45358513]
[1722338641448,0.064,66767.0,66766.0,1.48316602]
[1722338642879,0.064,66767.0,66766.0,1.49716602]
[1722338643088,0.0634,66770.0,66766.0,0.44873102]
[1722338643301,0.0634,66770.0,66769.0,1.04839]
[1722338643507,0.0634,66770.0,66769.0,1.62303512]
[1722338643711,0.0634,66770.0,66769.0,1.65439649]
[1722338644753,0.0634,66770.0,66769.0,1.66839649]
[1722338644959,0.0634,66770.0,66769.0,1.6930933]
[1722338645908,0.0634,66770.0,66769.0,1.69308886]
[1722338646609,0.0634,66770.0,66769.0,1.56862122]
[1722338646809,0.08395,66774.0,66773.0,1.048327]
[1722338647007,0.08395,66774.0,66773.0,1.32342287]
[1722338647149,0.08395,66774.0,66773.0,1.42551564]
[1722338647364,0.14805,66774.0,66773.0,1.42551564]
[1722338648394,0.14805,66774.0,66773.0,1.43951564]
[1722338649199,0.14805,66774.0,66773.0,1.42551564]
[1722338649804,0.14805,66774.0,66773.0,1.30105281]
[1722338650014,0.14805,66774.0,66773.0,1.42551476]
[1722338650428,0.14805,66774.0,66773.0,1.4255161]
[1722338650836,0.14805,66774.0,66773.0,1.4395161]
[1722338651046,0.14805,66774.0,66773.0,1.4255161]
[1722338651457,0.14805,66774.0,66773.0,1.4395161]
[1722338653153,0.14805,66774.0,66773.0,1.31505281]
[1722338653297,0.14805,66774.0,66773.0,1.43951525]
[1722338654133,0.14805,66774.0,66773.0,1.44863574]
[1722338655113,0.14805,66774.0,66773.0,1.37790173]
[1722338656519,0.14805,66774.0,66773.0,1.25343929]
[1722338656753,0.14805,66774.0,66773.0,1.37790582]
[1722338659886,0.14805,66774.0,66773.0,1.37790661]
[1722338661556,0.14805,66774.0,66773.0,1.21815308]
[1722338663136,0.00845,66774.0,66773.0,1.38015789]
[1722338663351,0.00845,66774.0,66773.0,1.50462442]
[1722338664184,0.00845,66774.0,66773.0,1.36878533]
[1722338664812,0.08535,66774.0,66773.0,1.36878533]
[1722338666266,0.00845,66774.0,66773.0,1.36878533]
[1722338666572,0.00845,66774.0,66773.0,1.36878432]
[1722338669820,0.00845,66774.0,66773.0,1.2443188]
[1722338670027,0.00845,66774.0,66773.0,1.36878386]
[1722338672134,0.00845,66774.0,66773.0,1.2443188]
[1722338672344,0.00845,66774.0,66773.0,1.51947817]
[1722338673856,0.00845,66774.0,66773.0,1.36878385]
[1722338674079,0.00845,66774.0,66773.0,0.91862881]
[1722338674285,0.15355,66774.0,66773.0,0.91862881]
[1722338675116,0.303308,66774.0,66773.0,0.16982381]
[1722338675341,0.602825,66774.0,66773.0,0.16982381]
[1722338675735,0.902342,66774.0,66773.0,0.014]
[1722338675979,0.979342,66774.0,66773.0,0.014]
[1722338676180,1.06925117,66774.0,66773.0,0.014]
[1722338676383,1.06925117,66774.0,66766.0,0.149776]
[1722338676384,0.149769,66770.0,66766.0,0.149776]
[1722338676488,0.299533,66771.0,66768.0,0.149772]
[1722338676489,0.0755,66769.0,66768.0,0.149772]
[1722338676690,0.0755,66769.0,66768.0,0.27426092]
[1722338676928,0.0755,66769.0,66768.0,0.15575317]
[1722338677146,0.1365,66769.0,66768.0,0.15575317]
[1722338677614,0.28627,66769.0,66768.0,0.15575317]
[1722338678157,0.1365,66769.0,66768.0,0.15575317]
[1722338678362,0.1365,66769.0,66768.0,0.16975317]
[1722338678363,0.28627,66769.0,66768.0,0.16975317]
[1722338678745,0.1365,66769.0,66768.0,0.16975317]
[1722338678950,0.1365,66769.0,66768.0,0.04526425]
[1722338690213,0.28627,66769.0,66768.0,0.04526425]
[1722338690409,0.28627,66769.0,66768.0,0.14526425]
[1722338692150,0.1365,66769.0,66768.0,0.14526425]
[1722338692553,0.28627,66769.0,66768.0,0.14526425]
[1722338693327,0.1365,66769.0,66768.0,0.14526425]
[1722338693498,0.28627,66769.0,66768.0,0.14526425]
[1722338693843,0.1365,66769.0,66768.0,0.14526425]
[1722338694449,0.1365,66769.0,66768.0,0.29503625]
[1722338694651,0.1365,66769.0,66768.0,0.14526425]
[1722338695849,0.1365,66769.0,66768.0,0.29503625]
[1722338696047,0.061,66769.0,66768.0,0.29503625]
[1722338696252,0.061,66769.0,66768.0,0.59458025]
[1722338696452,0.061,66769.0,66768.0,0.71906815]
[1722338697309,0.226761,66773.0,66772.0,0.149763]
[1722338697310,0.0663,66773.0,66772.0,0.149763]
[1722338697763,0.0663,66773.0,66772.0,0.17822146]
[1722338698481,0.0663,66773.0,66772.0,0.19222146]
[1722338698874,0.0663,66773.0,66772.0,0.04245846]
[1722338701149,0.216061,66773.0,66772.0,0.04245846]
[1722338701349,0.0663,66773.0,66772.0,0.04245846]
[1722338701552,0.216061,66773.0,66772.0,0.04245846]
[1722338701877,0.1433,66773.0,66772.0,0.04245846]
[1722338702406,0.592583,66773.0,66772.0,0.04245846]
[1722338702610,0.0663,66773.0,66772.0,0.04245846]
[1722338702961,0.0663,66773.0,66772.0,0.16694321]
[1722338703342,0.00845,66774.0,66772.0,0.46646921]
[1722338703543,0.00845,66774.0,66773.0,0.12448475]
[1722338703743,0.00845,66774.0,66772.0,0.19222046]
[1722338703970,0.158208,66774.0,66773.0,0.15293647]
[1722338704434,0.158208,66774.0,66773.0,0.15294066]
[1722338704648,0.158208,66774.0,66773.0,0.15294152]
[1722338705457,0.00818095,66774.0,66773.0,0.15294152]
[1722338705657,0.00818095,66774.0,66773.0,0.15321055]
[1722338705955,0.15793895,66774.0,66773.0,0.15321055]
[1722338706157,0.15793895,66774.0,66773.0,0.02845781]
[1722338706359,0.15793895,66774.0,66773.0,0.04145781]
[1722338706566,0.23763895,66774.0,66773.0,0.013]
[1722338706768,0.89847295,66774.0,66773.0,0.04145781]
[1722338706974,0.89847295,66774.0,66773.0,0.013]
[1722338707410,0.89783064,66774.0,66773.0,0.013]
[1722338711540,1.19734764,66774.0,66773.0,0.013]
[1722338712361,1.28720452,66774.0,66773.0,0.013]
[1722338712590,1.51186871,66774.0,66773.0,0.013]
[1722338712798,0.88855,66769.0,66768.0,0.1]
[1722338713025,1.59953325,66769.0,66768.0,0.1]
[1722338713231,1.75022757,66769.0,66768.0,0.1]
[1722338713437,2.04976757,66769.0,66768.0,0.1]
[1722338713620,1.89907325,66769.0,66768.0,0.1]
[1722338714007,1.58953325,66769.0,66768.0,0.1]
[1722338714321,1.28999435,66769.0,66768.0,0.1]
[1722338714447,1.28065481,66769.0,66768.0,0.1]
[1722338714653,1.30035647,66769.0,66768.0,0.1]
[1722338714851,0.70127647,66769.0,66768.0,0.1]
[1722338715139,0.9776605,66769.0,66768.0,0.1]
[1722338715330,0.88785,66769.0,66768.0,0.1]
[1722338715532,0.88758106,66769.0,66768.0,0.1]
[1722338715918,0.89058106,66769.0,66768.0,0.1]
[1722338716483,0.81358106,66769.0,66768.0,0.1]
[1722338716685,0.45204106,66769.0,66768.0,0.1]
[1722338717378,0.45204106,66769.0,66768.0,0.12252058]
[1722338717989,0.077,66770.0,66768.0,0.17995406]
[1722338718180,0.06735832,66772.0,66771.0,0.149765]
[1722338718396,0.00753864,66774.0,66772.0,0.230362]
[1722338718595,0.00753864,66774.0,66773.0,0.149761]
[1722338718596,0.00349146,66774.0,66773.0,0.149761]
[1722338718783,0.00349146,66774.0,66773.0,0.17383252]
[1722338718937,0.00349146,66774.0,66773.0,0.02251732]
[1722338719138,0.00349146,66774.0,66771.0,0.149765]
[1722338719323,0.00349146,66774.0,66773.0,0.02251732]
[1722338719526,0.00349146,66774.0,66772.0,0.1513162]
[1722338719527,0.00349146,66774.0,66772.0,0.17383417]
[1722338719722,0.00349146,66774.0,66773.0,0.02251732]
[1722338719929,0.00349146,66774.0,66773.0,0.02407152]
[1722338720171,0.00349146,66774.0,66773.0,0.02251732]
[1722338720384,0.00349146,66774.0,66771.0,0.149765]
[1722338720692,0.00349146,66774.0,66770.0,0.299534]
[1722338720693,0.00349146,66774.0,66772.0,0.17383517]
[1722338720869,0.00349146,66774.0,66773.0,0.149761]
[1722338721050,0.00349146,66774.0,66773.0,0.1513152]
[1722338721248,0.00349146,66774.0,66773.0,0.57627954]
[1722338721431,0.00349146,66774.0,66773.0,0.18127832]
[1722338721632,0.00349146,66774.0,66773.0,0.17383252]
[1722338722284,0.00349146,66774.0,66773.0,0.47335452]
[1722338722489,0.00349146,66774.0,66773.0,0.47980032]
[1722338722681,0.00349146,66774.0,66773.0,0.77932232]
[1722338723289,0.00349146,66774.0,66773.0,1.07884432]
[1722338723507,0.00349146,66774.0,66773.0,1.20332062]
[1722338723716,0.00349146,66774.0,66773.0,0.90379862]
[1722338723957,0.00349146,66774.0,66773.0,0.77932232]
[1722338724371,0.00349146,66774.0,66773.0,0.90379846]
[1722338724575,0.00349146,66774.0,66773.0,0.18027832]
[1722338724780,0.00349146,66774.0,66773.0,0.18183252]
[1722338724959,0.00349146,66774.0,66773.0,0.60583413]
[1722338725272,0.00349146,66774.0,66773.0,0.47335452]
[1722338725883,0.00349146,66774.0,66773.0,0.60783053]
[1722338726055,0.00349146,66774.0,66773.0,0.60627633]
[1722338726222,0.00349146,66774.0,66773.0,0.59627633]
[1722338726428,0.00349146,66774.0,66773.0,0.61027633]
[1722338727258,0.00349146,66774.0,66773.0,0.48663695]
[1722338727647,0.00331827,66774.0,66773.0,0.48663695]
[1722338728068,0.00331827,66774.0,66773.0,0.48580032]
[1722338728243,0.00331827,66774.0,66773.0,0.48735452]
[1722338728796,0.00331827,66774.0,66773.0,0.61183065]
[1722338729106,0.00331827,66774.0,66773.0,0.91135265]
[1722338729306,0.00331827,66774.0,66773.0,1.1567233]
[1722338729507,0.00331827,66774.0,66773.0,1.4562453]
[1722338730330,0.21831827,66774.0,66773.0,0.16099274]
[1722338730533,0.36807627,66774.0,66773.0,0.03651732]
[1722338730694,0.21831827,66774.0,66773.0,0.03651732]
[1722338730893,0.66759327,66774.0,66773.0,0.014]
[1722338731088,0.96711027,66774.0,66773.0,0.014]
[1722338731682,1.03447585,66774.0,66773.0,0.014]
[1722338731860,0.96711027,66774.0,66773.0,0.014]
[1722338732058,1.34899929,66774.0,66773.0,0.014]
[1722338732259,1.28163134,66774.0,66773.0,0.014]
[1722338732470,1.28163134,66774.0,66769.0,0.0015542]
[1722338732471,0.74855482,66770.0,66769.0,0.0015542]
[1722338732658,0.82555482,66770.0,66769.0,0.0015542]
[1722338732857,1.12508982,66770.0,66769.0,0.0015542]
[1722338733009,1.21492131,66770.0,66769.0,0.0015542]
[1722338733207,1.21492131,66770.0,66768.0,0.1]
[1722338733208,0.74885,66769.0,66768.0,0.1]
[1722338733598,0.83867579,66769.0,66768.0,0.1]
[1722338733809,0.74885,66769.0,66768.0,0.1]
[1722338734018,0.83867579,66769.0,66768.0,0.1]
[1722338734523,0.14977,66769.0,66768.0,0.1]
[1722338734727,0.51667459,66769.0,66768.0,0.1]
[1722338734952,0.51667459,66769.0,66768.0,0.11872958]
[1722338735327,0.81621459,66769.0,66768.0,0.11872958]
[1722338735735,0.44931,66769.0,66768.0,0.11872958]
[1722338735982,0.04490759,66772.0,66769.0,0.1413]
[1722338736156,0.07068286,66774.0,66772.0,0.449289]
[1722338736157,0.00331827,66774.0,66772.0,0.449289]
[1722338736463,0.00331827,66774.0,66773.0,0.449283]
[1722338736663,0.00331827,66774.0,66773.0,0.46800599]
[1722338737289,0.00331827,66774.0,66773.0,0.01872299]
[1722338737552,0.149762,66773.0,66768.0,0.249771]
[1722338737757,0.149762,66773.0,66772.0,0.009]
[1722338737976,0.526284,66773.0,66772.0,0.009]
[1722338738179,0.962806,66773.0,66772.0,0.009]
[1722338738351,1.48037633,66773.0,66772.0,0.02772364]
[1722338738526,1.41302232,66773.0,66772.0,0.009]
[1722338738922,0.74885,66769.0,66768.0,0.1]
[1722338739121,1.13820595,66769.0,66768.0,0.1]
[1722338739952,1.20290595,66769.0,66768.0,0.1]
[1722338740512,1.20290595,66769.0,66768.0,0.112]
[1722338740987,1.11309,66769.0,66768.0,0.112]
[1722338741126,1.20289383,66769.0,66768.0,0.112]
[1722338741527,1.11309,66769.0,66768.0,0.112]
[1722338741782,1.20288821,66769.0,66768.0,0.112]
[1722338742457,1.58509315,66769.0,66768.0,0.112]
[1722338742656,1.58259494,66769.0,66768.0,0.112]
[1722338743227,1.57259494,66769.0,66768.0,0.112]
[1722338743420,1.57259494,66769.0,66768.0,0.1]
[1722338743666,1.50549481,66769.0,66768.0,0.1]
[1722338744019,1.50549481,66769.0,66768.0,0.108]
[1722338744665,1.50549481,66769.0,66768.0,0.1]
[1722338746098,1.50549481,66769.0,66768.0,0.101]
[1722338746302,1.51456107,66769.0,66768.0,0.101]
[1722338747268,1.52456107,66769.0,66768.0,0.101]
[1722338747472,1.67525539,66769.0,66768.0,0.101]
[1722338747676,1.81922437,66769.0,66768.0,0.101]
[1722338748169,1.68459487,66769.0,66768.0,0.101]
[1722338748338,1.81921227,66769.0,66768.0,0.101]
[1722338749150,1.81921227,66769.0,66768.0,0.1]
[1722338749602,1.82121227,66769.0,66768.0,0.1]
[1722338749783,2.02913487,66769.0,66768.0,0.1]